fUST/lending_fUST_20250914
["ID","MTS","AMOUNT","RATE_DAILY","PERIOD"]
[385345690,1757790657883,-193.848828,0.00024657,7]
[385345692,1757790657893,-500.0,0.00024657,3]
[385345694,1757790657901,-193.848828,0.00024657,7]
[385345696,1757790657911,-193.848828,0.00024657,7]
[385345698,1757790657920,-193.848828,0.00024657,7]
[385345700,1757790657929,-193.848828,0.00024657,7]
[385345702,1757790657938,-193.848828,0.00024657,7]
[385345704,1757790657947,-193.848828,0.00024657,7]
[385345706,1757790657956,-151.0,0.00024657,7]
[385345708,1757790657966,-193.848828,0.00024657,7]
[385345710,1757790657975,-151.0,0.00024657,7]
[385345712,1757790657984,-193.848828,0.00024657,7]
[385345714,1757790657994,-151.0,0.00024657,7]
[385345716,1757790658003,-193.848828,0.00024657,7]
[385345718,1757790658012,-465.60984063,0.00024657,3]
[385345720,1757790658022,-151.0,0.00024657,7]
[385345722,1757790658031,-193.848835,0.00024657,7]
[385345724,1757790658041,-480.0,0.00024657,3]
[385345726,1757790658050,-151.0,0.00024657,7]
[385345728,1757790658059,-151.0,0.00024657,7]
[385345730,1757790658068,-480.0,0.00024657,3]
[385345732,1757790658077,-151.0,0.00024657,7]
[385345734,1757790658087,-151.0,0.00024657,7]
[385345736,1757790658096,-151.0,0.00024657,7]
[385345738,1757790658106,-151.0,0.00024657,7]
[385345740,1757790658115,-480.0,0.00024657,3]
[385345741,1757790658124,-151.0,0.00024657,7]
[385345742,1757790658134,-151.0,0.00024657,7]
[385345743,1757790658143,-151.0,0.00024657,7]
[385345744,1757790658152,-271.213133,0.00024657,7]
[385345745,1757790658161,-480.0,0.00024657,3]
[385345746,1757790658170,-549.18,0.00024657,3]
[385345747,1757790658179,-511.88,0.00024657,3]
[385345748,1757790658188,-480.0,0.00024657,3]
[385345749,1757790658197,-480.0,0.00024657,3]
[385345750,1757790658206,-480.0,0.00024657,3]
[385345751,1757790658215,-151.0,0.00024657,7]
[385345752,1757790658224,-151.0,0.00024657,7]
[385345753,1757790658233,-480.0,0.00024657,3]
[385345754,1757790658242,-480.0,0.00024657,3]
[385345755,1757790658251,-480.0,0.00024657,3]
[385345756,1757790658260,-480.0,0.00024657,3]
[385345757,1757790658269,-480.319512,0.00024657,3]
[385345758,1757790658279,-502.559396,0.00024657,7]
[385345759,1757790658287,-502.559396,0.00024657,7]
[385345760,1757790658297,-502.559396,0.00024657,7]
[385345761,1757790658306,-502.559396,0.00024657,7]
[385345763,1757790658315,-502.559396,0.00024657,7]
[385345765,1757790658324,-502.559396,0.00024657,7]
[385345766,1757790658334,-502.559396,0.00024657,7]
[385345769,1757790658345,-502.559396,0.00024657,7]
[385345771,1757790658354,-502.559396,0.00024657,7]
[385345773,1757790658363,-502.559396,0.00024657,7]
[385345775,1757790658372,-480.54786962,0.00024657,3]
[385345777,1757790658381,-502.559396,0.00024657,7]
[385345779,1757790658391,-502.559396,0.00024657,7]
[385345781,1757790658400,-502.559396,0.00024657,7]
[385345783,1757790658409,-502.559396,0.00024657,7]
[385345784,1757790658422,-2267.7819288,0.00024657,3]
[385345838,1757790658921,-472.5180712,0.00024657,3]
[385345840,1757790658930,-502.559396,0.00024657,7]
[385345842,1757790658940,-502.559396,0.00024657,7]
[385345844,1757790658949,-502.559396,0.00024657,7]
[385345846,1757790658959,-502.559396,0.00024657,7]
[385345848,1757790658969,-199.19834856,0.00024657,3]
[385345850,1757790658978,-502.559396,0.00024657,7]
[385345852,1757790658987,-151.0,0.00024657,7]
[385345854,1757790658997,-502.559395,0.00024657,7]
[385345856,1757790659007,-151.0,0.00024657,7]
[385345858,1757790659016,-151.0,0.00024657,7]
[385345860,1757790659026,-480.0,0.00024657,3]
[385345862,1757790659035,-151.0,0.00024657,7]
[385345864,1757790659044,-151.0,0.00024657,7]
[385345866,1757790659054,-151.0,0.00024657,7]
[385345868,1757790659063,-481.33343268,0.00024657,3]
[385345870,1757790659072,-151.0,0.00024657,7]
[385345872,1757790659082,-480.0,0.00024657,3]
[385345874,1757790659091,-151.0,0.00024657,7]
[385345876,1757790659100,-2033.57,0.00024657,3]
[385345878,1757790659110,-206.274212,0.00024657,7]
[385345880,1757790659119,-1690.84,0.00024657,3]
[385345882,1757790659129,-480.0,0.00024657,3]
[385345884,1757790659138,-1682.92,0.00024657,3]
[385345886,1757790659148,-480.0,0.00024657,3]
[385345888,1757790659158,-391.20903602,0.00024657,3]
[385345890,1757790659167,-480.0,0.00024657,3]
[385345892,1757790659176,-380.22705216,0.00024657,3]
[385345894,1757790659186,-480.96582808,0.00024657,3]
[385345896,1757790659195,-480.0,0.00024657,3]
[385345898,1757790659204,-500.0,0.00024657,3]
[385345900,1757790659214,-166.913774,0.00024657,7]
[385345902,1757790659224,-500.0,0.00024657,3]
[385345904,1757790659233,-166.913774,0.00024657,7]
[385345906,1757790659242,-500.0,0.00024657,3]
[385345908,1757790659252,-166.913774,0.00024657,7]
[385345910,1757790659261,-500.0,0.00024657,3]
[385345912,1757790659270,-480.0,0.00024657,3]
[385345914,1757790659280,-480.0,0.00024657,3]
[385345915,1757790659289,-500.0,0.00024657,3]
[385345917,1757790659298,-166.913774,0.00024657,7]
[385345920,1757790659310,-480.0,0.00024657,3]
[385345922,1757790659321,-480.0,0.00024657,3]
[385345924,1757790659330,-166.913774,0.00024657,7]
[385345926,1757790659340,-500.0,0.00024657,3]
[385345928,1757790659354,-500.0,0.00024657,3]
[385345930,1757790659364,-166.913774,0.00024657,7]
[385345932,1757790659374,-500.0,0.00024657,3]
[385345934,1757790659383,-166.913774,0.00024657,7]
[385345936,1757790659392,-480.0,0.00024657,3]
[385345938,1757790659401,-500.0,0.00024657,3]
[385345940,1757790659411,-166.913774,0.00024657,7]
[385345942,1757790659424,-480.0,0.00024657,3]
[385345944,1757790659433,-500.0,0.00024657,3]
[385345946,1757790659442,-166.913774,0.00024657,7]
[385345948,1757790659451,-500.0,0.00024657,3]
[385345950,1757790659462,-166.913774,0.00024657,7]
[385345952,1757790659472,-500.0,0.00024657,3]
[385345954,1757790659481,-166.913774,0.00024657,7]
[385345956,1757790659490,-500.0,0.00024657,3]
[385345958,1757790659500,-166.913774,0.00024657,7]
[385345960,1757790659510,-480.0,0.00024657,3]
[385345962,1757790659519,-500.0,0.00024657,3]
[385345964,1757790659528,-166.913774,0.00024657,7]
[385345966,1757790659537,-500.0,0.00024657,3]
[385345968,1757790659546,-166.913774,0.00024657,7]
[385345970,1757790659555,-480.0,0.00024657,3]
[385345972,1757790659565,-480.0,0.00024657,3]
[385345974,1757790659574,-500.0,0.00024657,3]
[385345976,1757790659584,-166.913774,0.00024657,7]
[385345978,1757790659595,-500.0,0.00024657,3]
[385345979,1757790659604,-166.913774,0.00024657,7]
[385345981,1757790659613,-976.83,0.00024657,3]
[385345983,1757790659622,-500.0,0.00024657,3]
[385345985,1757790659631,-480.0,0.00024657,3]
[385345987,1757790659641,-166.913774,0.00024657,7]
[385345989,1757790659650,-500.0,0.00024657,3]
[385345991,1757790659660,-166.913774,0.00024657,7]
[385345993,1757790659669,-480.0,0.00024657,3]
[385345995,1757790659678,-500.0,0.00024657,3]
[385345997,1757790659688,-166.913774,0.00024657,7]
[385345999,1757790659699,-500.0,0.00024657,3]
[385346001,1757790659713,-166.913774,0.00024657,7]
[385346003,1757790659722,-500.0,0.00024657,3]
[385346005,1757790659731,-500.0,0.00024657,3]
[385346007,1757790659740,-480.0,0.00024657,3]
[385346009,1757790659749,-308.46521942,0.00024657,3]
[385346011,1757790659758,-480.0,0.00024657,3]
[385346013,1757790659767,-494.28499477,0.00024657,3]
[385346015,1757790659776,-480.0,0.00024657,3]
[385346016,1757790659791,-480.0,0.00024657,3]
[385346018,1757790659801,-3082.1,0.00024657,3]
[385346020,1757790659811,-480.0,0.00024657,3]
[385346022,1757790659820,-205.736722,0.00024657,7]
[385346024,1757790659830,-1217.25,0.00024657,3]
[385346026,1757790659839,-205.736722,0.00024657,7]
[385346029,1757790659849,-205.736722,0.00024657,7]
[385346031,1757790659859,-480.0,0.00024657,3]
[385346033,1757790659868,-480.0,0.00024657,3]
[385346034,1757790659877,-480.0,0.00024657,3]
[385346036,1757790659886,-205.736722,0.00024657,7]
[385346038,1757790659895,-151.0,0.00024657,7]
[385346040,1757790659905,-151.0,0.00024657,7]
[385346042,1757790659915,-205.736722,0.00024657,7]
[385346044,1757790659924,-188.97358838,0.00024657,3]
[385365904,1757791129608,150.5,0.00024647,120]
[385365905,1757791130061,150.5,0.00024637,120]
[385365906,1757791130520,150.5,0.00024627,120]
[385365907,1757791130979,150.5,0.00025469,120]
[385365908,1757791131460,150.5,0.00025459,120]
[385365909,1757791131893,300.92,0.00025449,120]
[385365916,1757791478725,203.073685,0.00027397,120]
[385365932,1757791718318,495.56813624,0.00029708,120]
[385365935,1757791721614,285.24371364,0.00029708,60]
[385365936,1757791722060,154.34172326,0.00025,120]
[385365941,1757791725320,993.23847132,0.00027,120]
[385366008,1757791832741,-905.01514067,0.000199,2]
[385366011,1757791832750,-150.31395882,0.0002,7]
[385366013,1757791832759,-905.01514063,0.00021149,2]
[385366016,1757791832768,-905.01514063,0.00022398,2]
[385366019,1757791832777,-300.0,0.0002246,2]
[385366021,1757791832787,-8999.8535962,0.00022461,2]
[385366023,1757791832796,-199.347142,0.00022746,2]
[385366025,1757791832806,-177.306304,0.00022803,2]
[385366027,1757791832815,-300.0,0.00022909,20]
[385366029,1757791832824,-300.0,0.00022909,20]
[385366031,1757791832833,-300.0,0.00022909,20]
[385366033,1757791832842,-300.0,0.00022909,20]
[385366035,1757791832851,-300.0,0.00022909,20]
[385366036,1757791832861,-300.0,0.00022909,20]
[385366038,1757791832870,-300.0,0.00022909,20]
[385366040,1757791832879,-300.0,0.00022909,20]
[385366042,1757791832888,-300.0,0.00022909,20]
[385366044,1757791832898,-300.0,0.00022909,20]
[385366046,1757791832907,-300.0,0.00022909,20]
[385366047,1757791832916,-300.0,0.00022909,20]
[385366049,1757791832925,-300.0,0.00022909,20]
[385366051,1757791832934,-300.0,0.00022909,20]
[385366053,1757791832944,-300.0,0.00022909,20]
[385366055,1757791832953,-23884.39078972,0.00022909,2]
[385366056,1757791832962,-905.01514063,0.00023647,2]
[385366057,1757791832972,-280.37915339,0.00023675,2]
[385366058,1757791832981,-3000.0,0.00023733,2]
[385366059,1757791832990,-181.08010149,0.00023761,2]
[385366060,1757791833000,-3434.92757565,0.00023761,2]
[385366061,1757791833010,-926.0,0.00023765,2]
[385366062,1757791833020,-559.93,0.00023766,3]
[385366063,1757791833030,-279.97,0.00023766,3]
[385366064,1757791833039,-839.92,0.00023766,3]
[385366065,1757791833050,-500.0,0.00023775,2]
[385366066,1757791833060,-500.0,0.00023775,2]
[385366067,1757791833070,-500.0,0.00023775,2]
[385366068,1757791833080,-500.0,0.00023775,2]
[385366069,1757791833090,-500.0,0.00023775,2]
[385366070,1757791833099,-500.0,0.00023775,2]
[385366071,1757791833109,-174.92860712,0.00023775,2]
[385366072,1757791833119,-500.0,0.00023775,2]
[385366073,1757791833128,-500.0,0.00023775,2]
[385366074,1757791833139,-500.0,0.00023775,2]
[385366075,1757791833150,-243.23363,0.00023775,2]
[385366076,1757791833159,-500.0,0.00023775,2]
[385366077,1757791833169,-258.54354999,0.00023775,2]
[385366078,1757791833180,-500.0,0.00023775,2]
[385366079,1757791833189,-500.0,0.00023775,2]
[385366080,1757791833198,-500.0,0.00023775,2]
[385366081,1757791833211,-193.69262555,0.00023775,2]
[385366082,1757791833220,-500.0,0.00023775,2]
[385366083,1757791833229,-50847.24520692,0.00023776,2]
[385366084,1757791833241,-1532.10708423,0.00023776,2]
[385366085,1757791833260,-54413.60455834,0.00023776,2]
[385366086,1757791833275,-55750.26823302,0.00023776,2]
[385366087,1757791833285,-500.0,0.00023776,2]
[385366088,1757791833294,-161.7920066,0.00023781,2]
[385366089,1757791833303,-161.7920066,0.00023781,2]
[385366090,1757791833313,-161.7920066,0.00023836,2]
[385366091,1757791833322,-500.0,0.00023875,10]
[385366092,1757791833332,-351.63498204,0.00023875,10]
[385366093,1757791833341,-161.7920066,0.00023878,2]
[385366094,1757791833351,-2042.10276039,0.00023959,2]
[385366095,1757791833371,-17343.37147845,0.0002399,2]
[385366096,1757791833381,-500.0,0.0002405,2]
[385366097,1757791833391,-160.0,0.00024179,2]
[385366098,1757791833401,-417.15472785,0.00024179,2]
[385366099,1757791833411,-600.0,0.0002424,20]
[385366100,1757791833420,-500.0,0.00024324,2]
[385366101,1757791833430,-262.007,0.00024367,6]
[385366102,1757791833439,-420.0,0.00024395,2]
[385366103,1757791833449,-500.0,0.000244,2]
[385366104,1757791833459,-500.0,0.000244,2]
[385366105,1757791833468,-500.0,0.000244,2]
[385366106,1757791833479,-6590.93279969,0.000244,2]
[385366107,1757791833488,-280.37915335,0.00024524,2]
[385366108,1757791833500,-1000.0,0.00024557,2]
[385366109,1757791833510,-4828.89902253,0.00024557,2]
[385366123,1757791838510,-1040.39925029,0.00024557,2]
[385366124,1757791838519,-309.12074971,0.00024584,2]
[385366125,1757791838557,-467.78343142,0.00024584,2]
[385366162,1757791840625,-9250.37228072,0.00024584,2]
[385366163,1757791840635,-161.7920066,0.00024603,2]
[385366164,1757791840644,-161.7920066,0.00024603,2]
[385366165,1757791840653,-161.7920066,0.00024603,2]
[385366166,1757791840663,-168.0,0.00024607,2]
[385366167,1757791840672,-157.0,0.00024631,2]
[385366168,1757791840681,-157.0,0.00024631,2]
[385366169,1757791840691,-308.33319104,0.00024631,2]
[385366170,1757791840700,-157.0,0.00024631,2]
[385366171,1757791840709,-783.0,0.00024631,2]
[385366172,1757791840718,-157.0,0.00024631,2]
[385366173,1757791840727,-500.0,0.00024631,2]
[385366174,1757791840737,-500.0,0.00024631,2]
[385366175,1757791840746,-500.0,0.00024631,2]
[385366176,1757791840755,-96.67721649,0.00024631,2]
[385366182,1757791843687,-403.32278351,0.00024631,2]
[385366183,1757791843696,-500.0,0.00024631,2]
[385366184,1757791843706,-500.0,0.00024631,2]
[385366185,1757791843715,-500.0,0.00024631,2]
[385366186,1757791843725,-500.0,0.00024631,2]
[385366187,1757791843734,-157.0,0.00024631,2]
[385366188,1757791843744,-157.0,0.00024631,2]
[385366189,1757791843754,-500.0,0.00024631,2]
[385366190,1757791843765,-500.0,0.00024631,2]
[385366191,1757791843774,-157.0,0.00024631,2]
[385366192,1757791843783,-199.36865223,0.00024631,2]
[385366193,1757791843793,-168.0,0.00024631,2]
[385366194,1757791843802,-3371.37501286,0.00024656,2]
[385366195,1757791843811,-3777.24334394,0.00024656,2]
[385366196,1757791843822,-2282.57237919,0.00024657,2]
[385366197,1757791843831,-480.0,0.00024657,3]
[385366198,1757791843840,-480.0,0.00024657,3]
[385366199,1757791843849,-480.0,0.00024657,3]
[385366200,1757791843858,-337.50312218,0.00024657,3]
[385366201,1757791843867,-245.90533223,0.00024657,3]
[385366202,1757791843877,-484.95649422,0.00024657,3]
[385366203,1757791843886,-480.0,0.00024657,3]
[385366204,1757791843895,-480.0,0.00024657,3]
[385366205,1757791843903,-482.44581184,0.00024657,3]
[385366207,1757791843912,-480.0,0.00024657,3]
[385366209,1757791843921,-480.0,0.00024657,3]
[385366211,1757791843930,-480.0,0.00024657,3]
[385366212,1757791843938,-480.0,0.00024657,3]
[385366213,1757791844053,-480.0,0.00024657,3]
[385366214,1757791844087,-500.0,0.00024657,3]
[385366215,1757791844096,-480.0,0.00024657,3]
[385366216,1757791844105,-496.23311005,0.00024657,3]
[385366217,1757791844114,-480.0,0.00024657,3]
[385366218,1757791844123,-130.8478761,0.00024657,3]
[385366219,1757791844136,-349.1521239,0.00024657,3]
[385366220,1757791844145,-480.0,0.00024657,3]
[385366221,1757791844156,-480.0,0.00024657,3]
[385366222,1757791844165,-480.0,0.00024657,3]
[385366223,1757791844174,-480.0,0.00024657,3]
[385366224,1757791844184,-480.0,0.00024657,3]
[385366225,1757791844193,-480.0,0.00024657,3]
[385366226,1757791844203,-480.0,0.00024657,3]
[385366227,1757791844212,-480.0,0.00024657,3]
[385366228,1757791844221,-480.0,0.00024657,3]
[385366229,1757791844230,-480.0,0.00024657,3]
[385366230,1757791844239,-480.0,0.00024657,3]
[385366231,1757791844249,-480.0,0.00024657,3]
[385366232,1757791844259,-480.0,0.00024657,3]
[385366233,1757791844272,-480.0,0.00024657,3]
[385366234,1757791844282,-480.0,0.00024657,3]
[385366235,1757791844291,-480.0,0.00024657,3]
[385366236,1757791844300,-480.0,0.00024657,3]
[385366237,1757791844309,-480.0,0.00024657,3]
[385366238,1757791844320,-520.0,0.00024657,3]
[385366239,1757791844329,-480.0,0.00024657,3]
[385366240,1757791844338,-480.0,0.00024657,3]
[385366241,1757791844348,-480.0,0.00024657,3]
[385366242,1757791844357,-480.0,0.00024657,3]
[385366243,1757791844366,-480.0,0.00024657,3]
[385366244,1757791844376,-480.0,0.00024657,3]
[385366245,1757791844385,-27.6378761,0.00024657,3]
[385366246,1757791844405,-452.3621239,0.00024657,3]
[385366247,1757791844415,-480.0,0.00024657,3]
[385366248,1757791844425,-617.5,0.00024657,3]
[385366249,1757791844435,-463.0504928,0.00024657,3]
[385366250,1757791844445,-480.0,0.00024657,3]
[385366251,1757791844454,-480.0,0.00024657,3]
[385366252,1757791844463,-480.0,0.00024657,3]
[385366253,1757791844472,-480.0,0.00024657,3]
[385366254,1757791844482,-480.0,0.00024657,3]
[385366255,1757791844491,-489.21819823,0.00024657,3]
[385366256,1757791844500,-480.0,0.00024657,3]
[385366257,1757791844510,-480.0,0.00024657,3]
[385366258,1757791844519,-541.86918507,0.00024657,3]
[385366300,1757791846657,-37.27081493,0.00024657,3]
[385366302,1757791846667,-285.10919395,0.00024657,3]
[385366304,1757791846678,-194.89080605,0.00024657,3]
[385366306,1757791846688,-480.0,0.00024657,3]
[385366308,1757791846697,-480.0,0.00024657,3]
[385366310,1757791846706,-480.0,0.00024657,3]
[385366312,1757791846715,-392.32452395,0.00024657,3]
[385366315,1757791846727,-87.67547605,0.00024657,3]
[385366317,1757791846736,-476.6180239,0.00024657,3]
[385366544,1757792364357,203.073685,0.00027397,120]
[385366548,1757792713644,500.0,0.00029726,60]
[385366553,1757792822895,166.647521,0.00011525,2]
[385366557,1757792852883,214.1194379,0.00027,120]
[385366559,1757792906454,500.0,0.000137,2]
[385366560,1757792918869,500.0,0.000137,2]
[385366561,1757792929907,500.0,0.000137,2]
[385366562,1757792940393,500.0,0.000137,2]
[385366592,1757793031840,-300.0,0.00019309,2]
[385366594,1757793031849,-605.0,0.00019504,2]
[385366596,1757793031858,-918.63410429,0.000199,2]
[385366598,1757793031868,-918.6341042,0.00021149,2]
[385366600,1757793031877,-918.6341042,0.00022398,2]
[385366602,1757793031887,-769.546652,0.00023309,2]
[385366603,1757793031896,-1447.8130946,0.00023313,2]
[385366605,1757793031905,-312.0,0.00023444,2]
[385366634,1757793032082,-480.0,0.00023456,2]
[385366636,1757793032091,-312.0,0.00023477,2]
[385366637,1757793032100,-312.0,0.00023505,2]
[385366638,1757793032109,-1200.0,0.00023646,2]
[385366639,1757793032120,-918.6341042,0.00023647,2]
[385366640,1757793032129,-659.67588683,0.00023676,2]
[385366641,1757793032138,-300.0,0.00023883,2]
[385366642,1757793032148,-1200.0,0.00023884,2]
[385366644,1757793032157,-584.4874247,0.00023885,2]
[385366646,1757793032166,-591.642094,0.00023885,2]
[385366647,1757793032175,-821.05585734,0.00024,10]
[385366649,1757793032184,-309.0,0.00024053,2]
[385366651,1757793032192,-309.0,0.00024095,2]
[385366653,1757793032199,-160.0,0.00024102,2]
[385366655,1757793032208,-160.0,0.00024102,2]
[385366656,1757793032217,-160.0,0.00024102,2]
[385366658,1757793032226,-153.272558,0.00024119,20]
[385366660,1757793032236,-1000.0,0.00024149,2]
[385366662,1757793032245,-1000.0,0.00024149,2]
[385366664,1757793032255,-1000.0,0.00024149,2]
[385366666,1757793032264,-383.37320078,0.00024149,2]
[385366668,1757793032273,-151.0,0.00024149,2]
[385366670,1757793032282,-151.0,0.00024149,2]
[385366672,1757793032291,-263.76581671,0.00024149,2]
[385366674,1757793032299,-166.8641689,0.00024149,2]
[385366676,1757793032308,-309.0,0.00024159,2]
[385366678,1757793032317,-309.0,0.00024243,2]
[385366679,1757793032325,-309.0,0.00024436,2]
[385366680,1757793032334,-309.0,0.00024454,2]
[385366681,1757793032342,-309.0,0.00024465,2]
[385366682,1757793032350,-309.0,0.00024499,2]
[385366683,1757793032358,-309.0,0.00024533,2]
[385366684,1757793032367,-309.0,0.00024533,2]
[385366685,1757793032375,-3413.9292896,0.00024557,2]
[385366688,1757793032612,-498.93622562,0.00024557,2]
[385366690,1757793032621,-10587.83715118,0.00024621,2]
[385366692,1757793032629,-591.642094,0.0002463,2]
[385366694,1757793032639,-461.015,0.00024647,7]
[385366696,1757793032647,-279.96,0.00024647,3]
[385366698,1757793032656,-839.92,0.00024647,3]
[385366700,1757793032665,-500.0,0.00024656,2]
[385366701,1757793032674,-500.0,0.00024656,2]
[385366703,1757793032683,-500.0,0.00024656,2]
[385366704,1757793032692,-500.0,0.00024656,2]
[385366706,1757793032702,-440.36857441,0.00024656,2]
[385366708,1757793032711,-500.0,0.00024656,2]
[385366710,1757793032721,-500.0,0.00024656,2]
[385366712,1757793032731,-500.0,0.00024656,2]
[385366714,1757793032740,-500.0,0.00024656,2]
[385366716,1757793032750,-500.0,0.00024656,2]
[385366718,1757793032759,-239.88106416,0.00024656,2]
[385366720,1757793032769,-494.89068801,0.00024656,2]
[385366722,1757793032778,-500.0,0.00024656,2]
[385366724,1757793032788,-500.0,0.00024656,2]
[385366726,1757793032797,-157.0,0.00024656,2]
[385366728,1757793032807,-500.0,0.00024656,2]
[385366729,1757793032816,-157.0,0.00024656,2]
[385366731,1757793032833,-157.0,0.00024656,2]
[385366734,1757793032843,-500.0,0.00024656,2]
[385366735,1757793032852,-157.0,0.00024656,2]
[385366737,1757793032862,-500.0,0.00024656,2]
[385366739,1757793032871,-500.0,0.00024656,2]
[385366741,1757793032882,-157.0,0.00024656,2]
[385366743,1757793032892,-157.0,0.00024656,2]
[385366745,1757793032902,-157.0,0.00024656,2]
[385366747,1757793032911,-302.62305054,0.00024656,2]
[385366749,1757793032920,-500.0,0.00024656,2]
[385366750,1757793032930,-157.0,0.00024656,2]
[385366751,1757793032939,-157.0,0.00024656,2]
[385366752,1757793032948,-750.0,0.00024656,2]
[385366753,1757793032958,-500.0,0.00024656,2]
[385366754,1757793032967,-500.0,0.00024656,2]
[385366755,1757793032976,-314.84932216,0.00024656,2]
[385366756,1757793032986,-157.0,0.00024656,2]
[385366757,1757793032995,-500.0,0.00024656,2]
[385366758,1757793033006,-157.0,0.00024656,2]
[385366759,1757793033015,-157.0,0.00024656,2]
[385366760,1757793033025,-500.0,0.00024656,2]
[385366761,1757793033034,-164.89100626,0.00024656,2]
[385366762,1757793033044,-1141.28618959,0.00024657,2]
[385366763,1757793033053,-386.12426946,0.00024657,3]
[385366764,1757793033062,-6448.0181543,0.00024657,2]
[385366765,1757793033073,-19555.4463206,0.00024657,2]
[385366766,1757793033083,-483.62244309,0.00024657,3]
[385366767,1757793033093,-259.764563,0.00024657,3]
[385366768,1757793033103,-480.0,0.00024657,3]
[385366769,1757793033113,-500.0,0.00024657,3]
[385366770,1757793033123,-480.0,0.00024657,3]
[385366771,1757793033132,-520.0,0.00024657,3]
[385366772,1757793033142,-520.0,0.00024657,3]
[385366773,1757793033152,-480.0,0.00024657,3]
[385366774,1757793033162,-480.0,0.00024657,3]
[385366775,1757793033171,-480.0,0.00024657,3]
[385366776,1757793033180,-480.0,0.00024657,3]
[385366777,1757793033189,-480.0,0.00024657,3]
[385366778,1757793033199,-480.0,0.00024657,3]
[385366779,1757793033208,-480.0,0.00024657,3]
[385366780,1757793033218,-480.0,0.00024657,3]
[385366781,1757793033228,-480.0,0.00024657,3]
[385366782,1757793033237,-480.0,0.00024657,3]
[385366783,1757793033246,-480.0,0.00024657,3]
[385366784,1757793033256,-480.0,0.00024657,3]
[385366785,1757793033265,-480.0,0.00024657,3]
[385366786,1757793033274,-480.0,0.00024657,2]
[385366787,1757793033284,-480.0,0.00024657,3]
[385366788,1757793033293,-480.0,0.00024657,3]
[385366789,1757793033303,-480.0,0.00024657,3]
[385366790,1757793033312,-480.0,0.00024657,3]
[385366791,1757793033322,-497.96828176,0.00024657,3]
[385366792,1757793033331,-480.0,0.00024657,3]
[385366793,1757793033341,-480.0,0.00024657,3]
[385366794,1757793033350,-480.0,0.00024657,3]
[385366795,1757793033360,-480.0,0.00024657,3]
[385366796,1757793033370,-500.0,0.00024657,3]
[385366797,1757793033380,-500.0,0.00024657,3]
[385366798,1757793033389,-500.0,0.00024657,3]
[385366799,1757793033399,-316.50616148,0.00024657,3]
[385366800,1757793033408,-480.0,0.00024657,3]
[385366801,1757793033417,-480.0,0.00024657,3]
[385366802,1757793033427,-480.0,0.00024657,3]
[385366803,1757793033436,-480.0,0.00024657,3]
[385366804,1757793033446,-480.0,0.00024657,3]
[385366805,1757793033455,-480.0,0.00024657,3]
[385366806,1757793033464,-480.0,0.00024657,3]
[385366807,1757793033474,-480.0,0.00024657,3]
[385366808,1757793033483,-480.0,0.00024657,3]
[385366809,1757793033492,-480.0,0.00024657,3]
[385366810,1757793033502,-480.0,0.00024657,3]
[385366811,1757793033511,-480.0,0.00024657,3]
[385366812,1757793033520,-480.0,0.00024657,3]